fUST/lending_fUST_20251206
["ID","MTS","AMOUNT","RATE_DAILY","PERIOD"]
[396426593,1764964319731,-500.0,0.00018904,2]
[396426594,1764964319742,-1330.04,0.00018904,2]
[396426595,1764964319751,-913.97,0.00018904,2]
[396426596,1764964319762,-500.0,0.00018904,2]
[396426597,1764964319771,-500.0,0.00018904,2]
[396426598,1764964319781,-500.0,0.00018904,2]
[396426599,1764964319791,-738.1,0.00018904,2]
[396426600,1764964319801,-1071.4,0.00018904,2]
[396426601,1764964319811,-1543.99,0.00018904,2]
[396426602,1764964319820,-1862.41,0.00018904,2]
[396426603,1764964319830,-500.0,0.00018904,2]
[396426604,1764964319840,-500.0,0.00018904,2]
[396426605,1764964319849,-939.06,0.00018904,2]
[396426606,1764964319859,-1733.31,0.00018904,2]
[396426607,1764964319869,-2719.16,0.00018904,2]
[396426608,1764964319879,-826.15,0.00018904,2]
[396426609,1764964319888,-500.0,0.00018904,2]
[396426610,1764964319898,-500.0,0.00018904,2]
[396426611,1764964319908,-1078.39,0.00018904,2]
[396426612,1764964319918,-708.58,0.00018904,2]
[396426613,1764964319927,-1771.78,0.00018904,2]
[396426614,1764964319937,-500.0,0.00018904,2]
[396426615,1764964319946,-500.0,0.00018904,2]
[396426616,1764964319956,-500.0,0.00018904,2]
[396426617,1764964319965,-500.0,0.00018904,2]
[396426618,1764964319974,-672.42,0.00018904,2]
[396426619,1764964319984,-874.07,0.00018904,2]
[396426620,1764964319993,-500.0,0.00018904,2]
[396426621,1764964320003,-611.92,0.00018904,2]
[396426622,1764964320015,-2821.54,0.00018904,2]
[396426623,1764964320026,-500.0,0.00018904,2]
[396426624,1764964320035,-500.0,0.00018904,2]
[396426625,1764964320045,-500.0,0.00018904,2]
[396426626,1764964320055,-636.11,0.00018904,2]
[396426627,1764964320065,-500.0,0.00018904,2]
[396426628,1764964320075,-971.51,0.00018904,2]
[396426629,1764964320085,-906.08,0.00018904,2]
[396426630,1764964320096,-500.0,0.00018904,2]
[396426631,1764964320106,-571.85,0.00018904,2]
[396426632,1764964320116,-500.0,0.00018904,2]
[396426633,1764964320125,-1069.86,0.00018904,2]
[396426634,1764964320135,-500.0,0.00018904,2]
[396426635,1764964320145,-1462.76,0.00018904,2]
[396426636,1764964320155,-502.82,0.00018904,2]
[396426637,1764964320165,-572.27585564,0.00018904,2]
[396426638,1764964320175,-500.0,0.00018904,2]
[396426639,1764964320184,-2534.3,0.00018904,2]
[396426640,1764964320194,-500.0,0.00018904,2]
[396426641,1764964320204,-500.0,0.00018904,2]
[396426642,1764964320214,-500.0,0.00018904,2]
[396426643,1764964320224,-500.0,0.00018904,2]
[396426644,1764964320234,-647.83,0.00018904,2]
[396426645,1764964320244,-1092.74,0.00018904,2]
[396426646,1764964320254,-478.84699367,0.00018904,2]
[396426647,1764964320264,-500.0,0.00018904,2]
[396426648,1764964320273,-500.0,0.00018904,2]
[396426649,1764964320283,-500.0,0.00018904,2]
[396426650,1764964320522,-1405.79,0.00018904,2]
[396426651,1764964320543,-1078.91,0.00018904,2]
[396426652,1764964320553,-500.0,0.00018904,2]
[396426653,1764964320562,-1311.8,0.00018904,2]
[396426654,1764964320571,-1734.17,0.00018904,2]
[396426655,1764964320580,-698.12,0.00018904,2]
[396426656,1764964320590,-1866.07,0.00018904,2]
[396426657,1764964320599,-500.0,0.00018904,2]
[396426658,1764964320609,-500.0,0.00018904,2]
[396426659,1764964320618,-1534.72,0.00018904,2]
[396426660,1764964320627,-524.96,0.00018904,2]
[396426661,1764964320636,-500.0,0.00018904,2]
[396426662,1764964320646,-647.36245217,0.00018904,2]
[396426663,1764964320655,-2060.56,0.00018904,2]
[396426664,1764964320664,-500.0,0.00018904,2]
[396426665,1764964320675,-673.73,0.00018904,2]
[396426666,1764964320684,-701.23,0.00018904,2]
[396426667,1764964320694,-1698.62,0.00018904,2]
[396426668,1764964320703,-658.93,0.00018904,2]
[396426669,1764964320713,-742.38,0.00018904,2]
[396426670,1764964320723,-747.63,0.00018904,2]
[396426671,1764964320732,-667.01,0.00018904,2]
[396426672,1764964320744,-500.0,0.00018904,2]
[396426673,1764964320754,-500.0,0.00018904,2]
[396426674,1764964320764,-721.72,0.00018904,2]
[396426675,1764964320773,-1151.69,0.00018904,2]
[396426676,1764964320783,-500.0,0.00018904,2]
[396426677,1764964320792,-991.55,0.00018904,2]
[396426678,1764964320802,-500.0,0.00018904,2]
[396426679,1764964320811,-500.0,0.00018904,2]
[396426680,1764964320821,-596.6,0.00018904,2]
[396426681,1764964320831,-1963.89,0.00018904,2]
[396426682,1764964320840,-2056.09,0.00018904,2]
[396426683,1764964320849,-292.98006865,0.00018904,2]
[396426684,1764964320859,-604.96559971,0.00018904,2]
[396426685,1764964320868,-1932.03,0.00018904,2]
[396426686,1764964320877,-1925.2,0.00018904,2]
[396426687,1764964320886,-694.04,0.00018904,2]
[396426688,1764964320896,-1279.51,0.00018904,2]
[396426689,1764964320905,-552.82,0.00018904,2]
[396426690,1764964320914,-1066.32,0.00018904,2]
[396426691,1764964320924,-500.0,0.00018904,2]
[396426692,1764964320933,-1282.6,0.00018904,2]
[396426693,1764964320943,-500.0,0.00018904,2]
[396426694,1764964320953,-1077.48,0.00018904,2]
[396426695,1764964320965,-575.21517266,0.00018904,2]
[396426696,1764964320974,-1056.93,0.00018904,2]
[396426697,1764964320984,-1405.18,0.00018904,2]
[396426698,1764964320993,-798.61,0.00018904,2]
[396426699,1764964321003,-500.0,0.00018904,2]
[396426700,1764964321014,-1114.7,0.00018904,2]
[396426701,1764964321025,-867.37,0.00018904,2]
[396426702,1764964321034,-500.0,0.00018904,2]
[396426703,1764964321044,-773.03,0.00018904,2]
[396426704,1764964321055,-2394.89,0.00018904,2]
[396426705,1764964321064,-500.4,0.00018904,2]
[396426706,1764964321073,-500.0,0.00018904,2]
[396426707,1764964321082,-1140.55,0.00018904,2]
[396426708,1764964321092,-447.8136215,0.00018904,2]
[396426709,1764964321102,-500.0,0.00018904,2]
[396426710,1764964321111,-753.55,0.00018904,2]
[396426711,1764964321120,-500.0,0.00018904,2]
[396426712,1764964321130,-1160.45,0.00018904,2]
[396426713,1764964321139,-507.01,0.00018904,2]
[396426714,1764964321148,-500.0,0.00018904,2]
[396426715,1764964321158,-801.76,0.00018904,2]
[396426716,1764964321167,-542.43,0.00018904,2]
[396426717,1764964321177,-2713.85,0.00018904,2]
[396426718,1764964321186,-500.0,0.00018904,2]
[396426719,1764964321195,-914.46,0.00018904,2]
[396426720,1764964321204,-500.0,0.00018904,2]
[396426721,1764964321214,-4419.03,0.00018904,2]
[396426722,1764964321223,-526.41,0.00018904,2]
[396426723,1764964321231,-588.91,0.00018904,2]
[396426724,1764964321243,-981.61,0.00018904,2]
[396426725,1764964321252,-562.03,0.00018904,2]
[396426726,1764964321262,-1146.46,0.00018904,2]
[396426727,1764964321272,-1195.63,0.00018904,2]
[396426728,1764964321281,-500.0,0.00018904,2]
[396426729,1764964321290,-2202.96,0.00018904,2]
[396426730,1764964321300,-500.0,0.00018904,2]
[396426731,1764964321309,-500.0,0.00018904,2]
[396426732,1764964321319,-769.64,0.00018904,2]
[396426733,1764964321329,-813.86,0.00018904,2]
[396426734,1764964321339,-530.06,0.00018904,2]
[396426735,1764964321348,-500.0,0.00018904,2]
[396426736,1764964321357,-708.5,0.00018904,2]
[396426737,1764964321366,-2092.31,0.00018904,2]
[396426738,1764964321375,-500.0,0.00018904,2]
[396426739,1764964321385,-500.0,0.00018904,2]
[396426740,1764964321395,-528.45,0.00018904,2]
[396426741,1764964321404,-500.0,0.00018904,2]
[396426742,1764964321413,-532.79,0.00018904,2]
[396426743,1764964321423,-1131.46,0.00018904,2]
[396426744,1764964321434,-1131.9,0.00018904,2]
[396426745,1764964321444,-500.0,0.00018904,2]
[396426746,1764964321454,-500.0,0.00018904,2]
[396426747,1764964321464,-608.86,0.00018904,2]
[396426748,1764964321473,-880.35,0.00018904,2]
[396426749,1764964321484,-784.6,0.00018904,2]
[396426750,1764964321494,-500.0,0.00018904,2]
[396426751,1764964321504,-589.81,0.00018904,2]
[396426752,1764964321514,-500.0,0.00018904,2]
[396426753,1764964321524,-500.0,0.00018904,2]
[396426754,1764964321534,-500.0,0.00018904,2]
[396426755,1764964321543,-537.52,0.00018904,2]
[396426756,1764964321553,-1014.04,0.00018904,2]
[396426757,1764964321563,-2220.46,0.00018904,2]
[396426758,1764964321572,-2190.66,0.00018904,2]
[396426759,1764964321582,-1158.75,0.00018904,2]
[396426760,1764964321592,-681.06,0.00018904,2]
[396426761,1764964321601,-500.0,0.00018904,2]
[396426762,1764964321611,-500.0,0.00018904,2]
[396426763,1764964321620,-2115.78,0.00018904,2]
[396426764,1764964321629,-500.0,0.00018904,2]
[396426765,1764964321639,-766.35,0.00018904,2]
[396426766,1764964321648,-966.12,0.00018904,2]
[396426767,1764964321658,-914.28,0.00018904,2]
[396426768,1764964321667,-982.55,0.00018904,2]
[396426769,1764964321677,-500.0,0.00018904,2]
[396426770,1764964321687,-298.91049396,0.00018904,2]
[396426771,1764964321696,-500.0,0.00018904,2]
[396426772,1764964321706,-936.35,0.00018904,2]
[396426773,1764964321716,-500.0,0.00018904,2]
[396426774,1764964321725,-500.0,0.00018904,2]
[396426775,1764964321739,-500.0,0.00018904,2]
[396426776,1764964321749,-500.0,0.00018904,2]
[396426777,1764964321758,-749.63,0.00018904,2]
[396426778,1764964321768,-1641.15,0.00018904,2]
[396426779,1764964321778,-1076.77,0.00018904,2]
[396426780,1764964321787,-500.0,0.00018904,2]
[396426781,1764964321802,-500.0,0.00018904,2]
[396426782,1764964321813,-500.0,0.00018904,2]
[396426783,1764964321823,-603.68,0.00018904,2]
[396426784,1764964321832,-698.96,0.00018904,2]
[396426785,1764964321842,-1666.18,0.00018904,2]
[396426786,1764964321851,-671.97,0.00018904,2]
[396426787,1764964321861,-502.19,0.00018904,2]
[396426788,1764964321870,-500.0,0.00018904,2]
[396426789,1764964321881,-2087.17,0.00018904,2]
[396426790,1764964321890,-500.0,0.00018904,2]
[396426791,1764964321901,-500.0,0.00018904,2]
[396426792,1764964321913,-516.65,0.00018904,2]
[396426793,1764964321922,-500.0,0.00018904,2]
[396426794,1764964321932,-500.0,0.00018904,2]
[396426795,1764964321942,-2037.83,0.00018904,2]
[396426796,1764964321951,-501.13,0.00018904,2]
[396426797,1764964321961,-500.0,0.00018904,2]
[396426798,1764964321970,-571.62,0.00018904,2]
[396426799,1764964321979,-500.0,0.00018904,2]
[396426800,1764964321990,-1758.23,0.00018904,2]
[396426801,1764964321999,-4101.23,0.00018904,2]
[396426802,1764964322009,-1128.95,0.00018904,2]
[396426803,1764964322023,-2336.08,0.00018904,2]
[396426804,1764964322033,-735.18,0.00018904,2]
[396426805,1764964322042,-656.91,0.00018904,2]
[396426806,1764964322051,-942.22,0.00018904,2]
[396426807,1764964322062,-464.59269982,0.00018904,2]
[396426808,1764964322071,-606.67,0.00018904,2]
[396426809,1764964322081,-500.0,0.00018904,2]
[396426810,1764964322091,-866.26,0.00018904,2]
[396426811,1764964322101,-500.13,0.00018904,2]
[396426812,1764964322111,-500.0,0.00018904,2]
[396426813,1764964322120,-500.0,0.00018904,2]
[396426814,1764964322130,-500.0,0.00018904,2]
[396426815,1764964322139,-500.0,0.00018904,2]
[396426816,1764964322148,-748.38,0.00018904,2]
[396426817,1764964322158,-784.77,0.00018904,2]
[396426818,1764964322168,-500.0,0.00018904,2]
[396426819,1764964322178,-3000.65,0.00018904,2]
[396426820,1764964322188,-525.35,0.00018904,2]
[396426821,1764964322197,-632.24,0.00018904,2]
[396426822,1764964322207,-500.0,0.00018904,2]
[396426823,1764964322217,-734.19,0.00018904,2]
[396426824,1764964322226,-500.0,0.00018904,2]
[396426825,1764964322235,-500.0,0.00018904,2]
[396426826,1764964322247,-1121.55,0.00018904,2]
[396426827,1764964322257,-4195.91,0.00018904,2]
[396426828,1764964322267,-500.0,0.00018904,2]
[396426829,1764964322276,-1169.87,0.00018904,2]
[396426830,1764964322286,-500.0,0.00018904,2]
[396426831,1764964322296,-500.0,0.00018904,2]
[396426832,1764964322306,-1721.78,0.00018904,2]
[396426833,1764964322315,-797.93,0.00018904,2]
[396426834,1764964322326,-500.0,0.00018904,2]
[396426835,1764964322336,-3352.24,0.00018904,2]
[396426836,1764964322346,-701.25,0.00018904,2]
[396426837,1764964322357,-500.0,0.00018904,2]
[396426838,1764964322367,-1865.02,0.00018904,2]
[396426839,1764964322377,-500.0,0.00018904,2]
[396426840,1764964322387,-547.35,0.00018904,2]
[396426841,1764964322397,-1140.86,0.00018904,2]
[396426842,1764964322407,-1061.3,0.00018904,2]
[396426843,1764964322416,-581.3,0.00018904,2]
[396426844,1764964322433,-561.53,0.00018904,2]
[396426845,1764964322443,-1248.52,0.00018904,2]
[396426846,1764964322453,-500.0,0.00018904,2]
[396426847,1764964322464,-565.64,0.00018904,2]
[396426848,1764964322473,-542.49184296,0.00018904,2]
[396426849,1764964322482,-1569.73,0.00018904,2]
[396426850,1764964322495,-1818.55,0.00018904,2]
[396426851,1764964322504,-522.2,0.00018904,2]
[396426852,1764964322514,-875.06,0.00018904,2]
[396426853,1764964322523,-500.0,0.00018904,2]
[396426854,1764964322533,-1114.54,0.00018904,2]
[396426855,1764964322542,-500.0,0.00018904,2]
[396426856,1764964322552,-500.0,0.00018904,2]
[396426857,1764964322561,-500.0,0.00018904,2]
[396426858,1764964322572,-1202.31,0.00018904,2]
[396426859,1764964322581,-585.06046469,0.00018904,2]
[396426860,1764964322592,-1019.58,0.00018904,2]
[396426861,1764964322603,-1283.59,0.00018904,2]
[396426862,1764964322614,-1200.75,0.00018904,2]
[396426863,1764964322625,-506.37,0.00018904,2]
[396426864,1764964322635,-500.0,0.00018904,2]
[396426865,1764964322645,-500.0,0.00018904,2]
[396426866,1764964322655,-1231.58,0.00018904,2]
[396426867,1764964322665,-654.39,0.00018904,2]
[396426868,1764964322674,-506.68,0.00018904,2]
[396426869,1764964322684,-500.0,0.00018904,2]
[396426870,1764964322694,-500.0,0.00018904,2]
[396426871,1764964322704,-1113.91,0.00018904,2]
[396426872,1764964322713,-663.62,0.00018904,2]
[396426873,1764964322723,-753.47,0.00018904,2]
[396426874,1764964322732,-1445.18,0.00018904,2]
[396426875,1764964322744,-500.0,0.00018904,2]
[396426876,1764964322754,-500.0,0.00018904,2]
[396426877,1764964322763,-500.0,0.00018904,2]
[396426878,1764964322773,-780.5,0.00018904,2]
[396426879,1764964322783,-889.08,0.00018904,2]
[396426880,1764964322793,-500.0,0.00018904,2]
[396426881,1764964322802,-2835.2,0.00018904,2]
[396426882,1764964322811,-500.0,0.00018904,2]
[396426883,1764964322821,-500.0,0.00018904,2]
[396426884,1764964322831,-1729.46,0.00018904,2]
[396426885,1764964322841,-1979.46,0.00018904,2]
[396426886,1764964322850,-575.86,0.00018904,2]
[396426887,1764964322860,-1316.03,0.00018904,2]
[396426888,1764964322869,-500.0,0.00018904,2]
[396426889,1764964322879,-1835.34,0.00018904,2]
[396426890,1764964322976,-459.6,0.00018904,2]
[396426891,1764964322985,-908.87,0.00018904,2]
[396426892,1764964322995,-653.14,0.00018904,2]
[396426893,1764964323004,-500.0,0.00018904,2]
[396426894,1764964323016,-557.4,0.00018904,2]
[396426895,1764964323025,-500.0,0.00018904,2]
[396426896,1764964323035,-1274.81,0.00018904,2]
[396426897,1764964323044,-978.78,0.00018904,2]
[396426898,1764964323054,-500.0,0.00018904,2]
[396426899,1764964323063,-500.0,0.00018904,2]
[396426900,1764964323073,-1825.48,0.00018904,2]
[396426901,1764964323082,-1459.61,0.00018904,2]
[396426902,1764964323093,-506.3,0.00018904,2]
[396426903,1764964323103,-500.0,0.00018904,2]
[396426904,1764964323113,-1362.88,0.00018904,2]
[396426905,1764964323122,-2330.6,0.00018904,2]
[396426906,1764964323131,-2129.96,0.00018904,2]
[396426907,1764964323140,-500.0,0.00018904,2]
[396426908,1764964323150,-500.0,0.00018904,2]
[396426909,1764964323159,-664.95,0.00018904,2]
[396426910,1764964323169,-1189.18,0.00018904,2]
[396426911,1764964323178,-500.0,0.00018904,2]
[396426912,1764964323188,-989.95,0.00018904,2]
[396426913,1764964323198,-1775.43,0.00018904,2]
[396426914,1764964323207,-1334.27,0.00018904,2]
[396426915,1764964323217,-500.0,0.00018904,2]
[396426916,1764964323228,-500.0,0.00018904,2]
[396426917,1764964323237,-500.0,0.00018904,2]
[396426918,1764964323247,-796.25,0.00018904,2]
[396426919,1764964323256,-362.20617219,0.00018904,2]
[396426920,1764964323265,-500.0,0.00018904,2]
[396426921,1764964323275,-4147.96,0.00018904,2]
[396426922,1764964323284,-500.0,0.00018904,2]
[396426923,1764964323293,-534.74983207,0.00018904,2]
[396426924,1764964323303,-677.16,0.00018904,2]
[396426925,1764964323313,-3508.67,0.00018904,2]
[396426926,1764964323322,-3856.98,0.00018904,2]
[396426927,1764964323331,-1405.37,0.00018904,2]
[396426928,1764964323341,-500.0,0.00018904,2]
[396426929,1764964323350,-8546.16,0.00018904,2]
[396426930,1764964323359,-595.52,0.00018904,2]
[396426931,1764964323369,-2012.27,0.00018904,2]
[396426932,1764964323378,-760.14,0.00018904,2]
[396426933,1764964323388,-869.37,0.00018904,2]
[396426934,1764964323398,-2862.43,0.00018904,2]
[396426935,1764964323408,-500.0,0.00018904,2]
[396426936,1764964323417,-500.0,0.00018904,2]
[396426937,1764964323427,-1260.61,0.00018904,2]
[396426938,1764964323436,-27168.59,0.00018904,2]
[396426939,1764964323445,-2573.74,0.00018904,2]
[396426940,1764964323454,-500.0,0.00018904,2]
[396426941,1764964323464,-500.0,0.00018904,2]
[396426942,1764964323472,-1519.74,0.00018904,2]
[396426943,1764964323482,-3739.24,0.00018904,2]
[396426944,1764964323492,-837.97,0.00018904,2]
[396426945,1764964323501,-2210.97,0.00018904,2]
[396426946,1764964323510,-879.68,0.00018904,2]
[396426947,1764964323520,-934.83,0.00018904,2]
[396426948,1764964323529,-1534.0,0.00018904,2]
[396426949,1764964323539,-613.38,0.00018904,2]
[396426950,1764964323548,-1145.34,0.00018904,2]
[396426951,1764964323558,-7737.29,0.00018904,2]
[396426952,1764964323567,-2897.13,0.00018904,2]
[396426953,1764964323577,-2245.52,0.00018904,2]
[396426954,1764964323587,-3989.26,0.00018904,2]
[396426955,1764964323597,-1590.89,0.00018904,2]
[396426956,1764964323606,-4880.82,0.00018904,2]
[396426957,1764964323616,-500.0,0.00018904,2]
[396426958,1764964323625,-500.0,0.00018904,2]
[396426959,1764964323635,-2037.18,0.00018904,2]
[396426960,1764964323645,-500.0,0.00018904,2]
[396426961,1764964323654,-1939.29,0.00018904,2]
[396426962,1764964323664,-500.0,0.00018904,2]
[396426963,1764964323674,-603.68,0.00018904,2]
[396426964,1764964323684,-586.39,0.00018904,2]
[396426965,1764964323695,-3745.52,0.00018904,2]
[396426966,1764964323705,-500.0,0.00018904,2]
[396426967,1764964323715,-1761.7,0.00018904,2]
[396426968,1764964323725,-500.0,0.00018904,2]
[396426969,1764964323736,-500.0,0.00018904,2]
[396426970,1764964323746,-500.0,0.00018904,2]
[396426971,1764964323755,-1154.72,0.00018904,2]
[396426972,1764964323765,-8082.89,0.00018904,2]
[396426973,1764964323774,-808.12,0.00018904,2]
[396426974,1764964323784,-1316.55,0.00018904,2]
[396426975,1764964323794,-1061.67,0.00018904,2]
[396426976,1764964323804,-1179.67,0.00018904,2]
[396426977,1764964323814,-500.0,0.00018904,2]
[396426978,1764964323824,-500.0,0.00018904,2]
[396426979,1764964323833,-500.0,0.00018904,2]
[396426980,1764964323843,-548.83,0.00018904,2]
[396426981,1764964323853,-2735.13,0.00018904,2]
[396426982,1764964323863,-2878.01,0.00018904,2]
[396426983,1764964323872,-500.0,0.00018904,2]
[396426984,1764964323882,-491.25569483,0.00018904,2]
[396426985,1764964323891,-6762.23,0.00018904,2]
[396426986,1764964323901,-1977.79,0.00018904,2]
[396426987,1764964323910,-500.0,0.00018904,2]
[396426988,1764964323919,-512.63,0.00018904,2]
[396426989,1764964323928,-531.05,0.00018904,2]
[396426990,1764964323938,-690.27,0.00018904,2]
[396426991,1764964323947,-588.28,0.00018904,2]
[396426992,1764964323956,-500.0,0.00018904,2]
[396426993,1764964323965,-500.0,0.00018904,2]
[396426994,1764964323974,-500.0,0.00018904,2]
[396426995,1764964323984,-1011.28,0.00018904,2]
[396426996,1764964323994,-6262.41,0.00018904,2]
[396426997,1764964324004,-582.19193657,0.00018904,2]
[396426998,1764964324016,-2046.2,0.00018904,2]
[396426999,1764964324026,-500.0,0.00018904,2]
[396427000,1764964324036,-2730.7,0.00018904,2]
[396427001,1764964324044,-776.59,0.00018904,2]
[396427002,1764964324054,-500.0,0.00018904,2]
[396427003,1764964324066,-632.99,0.00018904,2]
[396427004,1764964324075,-9293.72,0.00018904,2]
[396427005,1764964324085,-212.01493802,0.00018904,2]
[396427006,1764964324094,-500.0,0.00018904,2]
[396427007,1764964324105,-1523.9,0.00018904,2]
[396427008,1764964324115,-2206.65,0.00018904,2]
[396427009,1764964324123,-1216.27,0.00018904,2]
[396427010,1764964324133,-890.47,0.00018904,2]
[396427011,1764964324142,-1517.87,0.00018904,2]
[396427012,1764964324151,-500.0,0.00018904,2]
[396427013,1764964324160,-500.0,0.00018904,2]
[396427014,1764964324170,-678.08,0.00018904,2]
[396427015,1764964324179,-12607.12,0.00018904,2]
[396427016,1764964324189,-1261.52,0.00018904,2]
[396427017,1764964324198,-3411.98,0.00018904,2]
[396427018,1764964324207,-500.0,0.00018904,2]
[396427019,1764964324216,-8433.96,0.00018904,2]
[396427020,1764964324225,-500.0,0.00018904,2]
[396427021,1764964324234,-4594.16,0.00018904,2]
[396427022,1764964324245,-639.2,0.00018904,2]
[396427023,1764964324254,-601.94,0.00018904,2]
[396427024,1764964324263,-500.0,0.00018904,2]
[396427025,1764964324272,-557.9,0.00018904,2]
[396427026,1764964324283,-768.56,0.00018904,2]
[396427027,1764964324292,-564.07,0.00018904,2]
[396427028,1764964324301,-2955.98,0.00018904,2]
[396427029,1764964324310,-1537.53,0.00018904,2]
[396427030,1764964324320,-1822.27,0.00018904,2]
[396427031,1764964324329,-1145.09,0.00018904,2]
[396427032,1764964324338,-1807.2,0.00018904,2]
[396427033,1764964324348,-3671.84,0.00018904,2]
[396427034,1764964324357,-1517.42,0.00018904,2]
[396427035,1764964324366,-1021.51,0.00018904,2]
[396427036,1764964324376,-500.0,0.00018904,2]
[396427037,1764964324386,-500.0,0.00018904,2]
[396427038,1764964324395,-15606.7,0.00018904,2]
[396427039,1764964324405,-1718.3,0.00018904,2]
[396427040,1764964324414,-7505.89,0.00018904,2]
[396427041,1764964324423,-629.93,0.00018904,2]
[396427042,1764964324433,-500.0,0.00018904,2]
[396427043,1764964324442,-4537.01,0.00018904,2]
[396427044,1764964324452,-1160.08,0.00018904,2]
[396427045,1764964324461,-525.37921476,0.00018904,2]
[396427046,1764964324471,-500.0,0.00018904,2]
[396427047,1764964324480,-6149.82,0.00018904,2]
[396427048,1764964324493,-2978.24,0.00018904,2]
[396427049,1764964324502,-500.0,0.00018904,2]
[396427050,1764964324511,-566.43,0.00018904,2]
[396427051,1764964324520,-1483.55,0.00018904,2]
[396427052,1764964324530,-2769.97,0.00018904,2]
[396427053,1764964324539,-1249.37,0.00018904,2]
[396427054,1764964324548,-500.0,0.00018904,2]
[396427055,1764964324557,-603.32,0.00018904,2]
[396427056,1764964324567,-500.0,0.00018904,2]
[396427057,1764964324577,-2626.61,0.00018904,2]
[396427058,1764964324588,-500.0,0.00018904,2]
[396427059,1764964324597,-5057.213907,0.00018904,2]
[396427060,1764964324607,-241.84462522,0.00018904,2]
[396427061,1764964324616,-4802.09,0.00018904,2]
[396427062,1764964324626,-500.0,0.00018904,2]
[396427063,1764964324636,-999.44,0.00018904,2]
[396427064,1764964324645,-1503.75,0.00018904,2]
[396427065,1764964324655,-19450.21,0.00018904,2]
[396427066,1764964324664,-500.0,0.00018904,2]
[396427067,1764964324674,-1573.31,0.00018904,2]
[396427068,1764964324683,-1075.02,0.00018904,2]
[396427069,1764964324693,-500.0,0.00018904,2]
[396427070,1764964324702,-500.0,0.00018904,2]
[396427071,1764964324711,-1106.6,0.00018904,2]
[396427072,1764964324720,-500.0,0.00018904,2]
[396427073,1764964324730,-840.72,0.00018904,2]
[396427074,1764964324740,-500.0,0.00018904,2]
[396427075,1764964324750,-1613.52,0.00018904,2]
[396427076,1764964324760,-500.0,0.00018904,2]
[396427077,1764964324769,-518.4,0.00018904,2]
[396427078,1764964324779,-500.0,0.00018904,2]
[396427079,1764964324789,-500.0,0.00018904,2]
[396427080,1764964324799,-3055.31,0.00018904,2]
[396427081,1764964324809,-994.67,0.00018904,2]
[396427082,1764964324819,-994.61,0.00018904,2]
[396427083,1764964324828,-5779.12,0.00018904,2]
[396427084,1764964324838,-541.54,0.00018904,2]
[396427085,1764964324848,-500.0,0.00018904,2]
[396427086,1764964324858,-2703.83,0.00018904,2]
[396427087,1764964324868,-500.0,0.00018904,2]
[396427088,1764964324878,-13490.98,0.00018904,2]
[396427089,1764964324888,-723.64,0.00018904,2]
[396427090,1764964324898,-2375.57,0.00018904,2]
[396427091,1764964324907,-500.0,0.00018904,2]
[396427092,1764964324916,-1855.42,0.00018904,2]